bitfinex-derivatives/quotes_ETHF0:USTF0_20251118
["timestamp","ask_amount","ask_price","bid_price","bid_amount"]
[1763497673177,0.99206038,3143.4,3143.3,0.74445]
[1763497673780,1.50772038,3143.4,3143.3,0.2288]
[1763497673981,0.74005,3143.3,3143.2,0.74446]
[1763497674583,0.74008,3143.1,3143.0,0.89307623]
[1763497675381,0.51568,3143.1,3143.0,0.89307623]
[1763497676174,0.51566,3143.4,3143.3,0.74444]
[1763497676375,0.74006,3143.4,3143.3,0.74444]
[1763497676576,1.50732652,3143.4,3143.3,0.74444]
[1763497677679,0.74006,3143.4,3143.3,0.74444]
[1763497678579,1.50736291,3143.4,3143.3,0.2288]
[1763497678780,0.74677,3143.2,3143.1,0.75677]
[1763497678975,0.2311,3143.2,3143.1,0.75677]
[1763497680475,0.2311,3143.1,3143.0,0.00477623]
[1763497680676,4.63578,3143.1,3143.0,0.00477623]
[1763497680987,4.63578,3143.1,3142.3,3.21024196]
[1763497680988,0.7469,3142.4,3142.3,3.21024196]
[1763497681178,0.7469,3142.4,3142.3,3.45134196]
[1763497681680,0.7469,3142.4,3142.3,3.96715196]
[1763497681681,0.2311,3142.4,3142.3,3.96715196]
[1763497681880,0.00477623,3142.7,3142.6,0.75687]
[1763497682176,0.74687,3142.6,3142.5,0.3814]
[1763497682381,0.74687,3142.6,3142.5,0.89718]
[1763497683784,0.74687,3142.6,3142.5,0.3814]
[1763497683978,0.7469,3142.4,3142.3,0.00244196]
[1763497684178,1.513286,3142.4,3142.3,0.00244196]
[1763497684480,0.74701,3141.7,3141.6,0.49802103]
[1763497684681,0.74701,3141.7,3141.5,3.3516]
[1763497684682,0.74703,3141.6,3141.5,3.3516]
[1763497684879,0.51592,3141.7,3141.6,0.51593]
[1763497685185,0.5159,3141.8,3141.7,0.2411]
[1763497685387,0.51593,3141.6,3141.5,3.5927]
[1763497685583,0.75020899,3141.6,3141.5,3.35469773]
[1763497685780,0.75020899,3141.6,3141.5,3.87064773]
[1763497686184,0.75020899,3141.6,3141.5,3.35469773]
[1763497686475,0.75020899,3141.6,3141.5,0.00309773]
[1763497688288,0.75020899,3141.6,3141.5,0.51904773]
[1763497688681,0.75020899,3141.6,3141.5,0.00309773]
[1763497688882,0.75020899,3141.6,3141.5,0.51904773]
[1763497689085,0.75020899,3141.6,3141.5,0.90044773]
[1763497689392,0.00317899,3141.6,3141.5,4.10824773]
[1763497689588,0.51582,3142.3,3142.2,0.2411]
[1763497689888,0.51582,3142.3,3142.2,3.96473]
[1763497690088,0.74692,3142.3,3142.2,0.75693]
[1763497690289,0.51582,3142.3,3142.2,0.75693]
[1763497690479,0.51805508,3142.3,3142.2,0.75693]
[1763497691184,0.51585,3142.1,3142.0,0.3814]
[1763497691390,0.74695,3142.1,3142.0,0.3814]
[1763497692199,0.74696,3142.0,3141.9,0.51587]
[1763497692384,0.74696,3142.0,3141.9,0.75697]
[1763497692780,0.51586,3142.0,3141.9,0.75697]
[1763497693084,0.51585,3142.1,3142.0,0.89723]
[1763497693284,3.95695508,3142.3,3142.2,0.75693]
[1763497693484,3.72585508,3142.3,3142.2,0.75693]
[1763497694284,0.00223508,3142.3,3142.2,3.96473]
[1763497696085,0.00477623,3142.7,3142.6,0.75687]
[1763497696291,0.00477623,3142.7,3142.6,3.96467]
[1763497697095,0.00856411,3142.7,3142.6,3.96467]
[1763497701693,0.75551411,3142.7,3142.6,3.2078]
[1763497701893,0.75551411,3142.7,3142.6,3.4329]
[1763497702900,0.75551411,3142.7,3142.6,3.94867]
[1763497703795,0.23976411,3142.7,3142.6,3.94867]
[1763497704196,0.75551411,3142.7,3142.6,3.94867]
[1763497704393,0.00856411,3142.7,3142.6,3.94867]
[1763497713006,4.40463,3143.4,3143.3,0.51565]
[1763497713305,3.889,3143.4,3143.3,0.75685]
[1763497713797,4.40463,3143.4,3143.3,0.75685]
[1763497714105,3.89277775,3143.4,3143.3,0.75685]
[1763497714506,0.00377775,3143.4,3143.3,0.75685]
[1763497716502,0.2285,3144.7,3144.6,0.75664]
[1763497716701,3.72321,3144.8,3144.7,0.75662]
[1763497716904,3.4363,3144.8,3144.7,0.75662]
[1763497717105,0.74394,3144.6,3144.5,0.3774]
[1763497717405,0.74399,3144.4,3144.3,0.51549]
[1763497717608,0.74399,3144.3,3144.2,3.21257623]
[1763497717912,0.74399,3144.3,3144.2,3.73080326]
[1763497718111,0.51549,3144.3,3144.2,3.97200326]
[1763497718308,0.51549,3144.3,3144.2,0.76420326]
[1763497718504,0.74399,3144.3,3144.2,0.76420326]
[1763497719607,0.74399,3144.3,3144.2,0.00750326]
[1763497720310,0.74399,3144.3,3144.2,0.52300326]
[1763497720810,0.74399,3144.3,3144.2,0.76420326]
[1763497721409,0.74399,3144.3,3144.2,0.24870326]
[1763497721605,0.74399,3144.3,3144.2,0.00750326]
[1763497721913,0.2285,3144.3,3144.2,0.76420326]
[1763497722910,0.74399,3144.3,3144.2,0.76420326]
[1763497723506,0.00258654,3144.6,3144.5,0.89285]
[1763497723707,0.23108654,3144.6,3144.5,0.89285]
[1763497724410,0.00258654,3144.6,3144.5,0.89285]
[1763497724598,0.00477623,3144.9,3144.8,0.7566]
[1763497724797,0.00477623,3144.9,3144.8,3.9644]
[1763497727502,0.74866623,3144.9,3144.8,3.449]
[1763497727702,0.74866623,3144.9,3144.8,3.7232]
[1763497727901,0.2285,3144.8,3144.5,0.1362]
[1763497728101,0.2285,3144.3,3144.2,0.24870326]
[1763497728309,0.51542,3144.7,3144.6,0.75662]
[1763497728507,0.74392,3144.7,3144.6,0.75662]
[1763497728910,4.40442,3144.7,3144.6,0.75662]
[1763497729211,4.63292,3144.7,3144.6,0.2412]
[1763497729712,4.63292,3144.7,3144.6,0.75664]
[1763497730413,3.889,3144.7,3144.6,0.75664]
[1763497733512,0.00477623,3144.9,3144.8,0.7566]
[1763497737312,0.23217623,3144.9,3144.8,0.7566]
[1763497737620,0.74756623,3144.9,3144.8,0.7566]
[1763497738003,0.00477623,3144.9,3144.8,0.7566]
[1763497741417,3.72305,3145.8,3145.7,0.2386]
[1763497741817,3.95045,3145.8,3145.7,0.2386]
[1763497742221,0.2274,3145.8,3145.7,0.75386]
[1763497742715,0.23216834,3146.1,3146.0,0.2386]
[1763497742915,0.74735834,3146.1,3146.0,0.2386]
[1763497743220,0.74261,3146.0,3145.9,0.51522]
[1763497743420,1.50840377,3146.0,3145.9,0.75382]
[1763497743622,0.00476834,3146.1,3146.0,0.90011]
[1763497744318,0.23216834,3146.1,3146.0,0.90011]
[1763497744620,0.00476834,3146.1,3146.0,0.90011]
[1763497744815,3.889,3147.2,3146.7,0.51508]
[1763497745010,0.99378577,3147.1,3147.0,0.51504]
[1763497745215,0.2274,3147.1,3147.0,0.75364]
[1763497745711,0.2274,3147.1,3147.0,0.89994]
[1763497746022,0.2274,3147.2,3147.1,0.75362]
[1763497746323,0.23216834,3147.4,3147.3,0.2386]
[1763497746823,0.74714834,3147.4,3147.3,0.7536]
[1763497747320,0.74714834,3147.4,3147.3,0.2386]
[1763497747518,0.74241,3147.2,3147.1,3.2078]
[1763497749120,0.74241,3147.2,3147.0,0.51504]
[1763497749325,0.74241,3147.2,3146.7,0.00875723]
[1763497749326,0.74248,3146.9,3146.8,0.75366]
[1763497749521,0.00476834,3147.4,3146.7,3.21655723]
[1763497749522,0.74248,3146.8,3146.7,3.21655723]
[1763497749722,0.2274,3146.8,3146.7,3.97024723]
[1763497750133,0.51503,3147.1,3147.0,0.3849]
[1763497750325,0.7424,3147.3,3147.2,0.2386]
[1763497750523,0.515,3147.3,3147.2,0.2386]
[1763497750729,0.00476834,3147.4,3147.3,0.7536]
[1763497752533,3.3436,3148.5,3148.1,0.75346]
[1763497752534,0.51486,3148.2,3148.1,0.75346]
[1763497753041,0.51482,3148.4,3148.3,0.2386]
[1763497753237,7.8338,3149.0,3148.3,0.2386]
[1763497753238,0.1358,3149.0,3148.5,0.1463]
[1763497753431,0.74212,3149.0,3148.9,3.2078]
[1763497753631,0.85172,3149.0,3148.9,3.2078]
[1763497754938,0.74212,3149.0,3148.9,3.2078]
[1763497756630,0.51472,3149.0,3148.9,3.4464]
[1763497757632,0.85172,3149.0,3148.9,3.2078]
[1763497757939,0.74212,3149.0,3148.9,3.2078]
[1763497758532,0.87792,3149.0,3148.9,3.2078]
[1763497762439,0.5148,3148.5,3148.4,0.00476834]
[1763497762740,0.8568,3148.5,3148.4,3.21256834]
[1763497762947,0.8568,3148.5,3148.4,0.00476834]
[1763497764340,0.74766,3147.5,3147.4,3.444]
[1763497764746,0.51496,3147.5,3147.4,3.444]
[1763497765046,0.74766,3147.5,3147.4,3.444]
[1763497765551,0.51496,3147.5,3147.4,3.444]
[1763497766046,0.74766,3147.5,3147.4,3.444]
[1763497766248,0.74766,3147.5,3147.4,3.2078]
[1763497766847,0.74766,3147.5,3147.4,3.444]
[1763497769441,0.51496,3147.5,3147.4,3.444]
[1763497769846,0.75626,3147.5,3147.4,3.444]
[1763497770944,0.51496,3147.5,3147.4,3.444]
[1763497771651,0.51496,3147.5,3147.4,3.95898]
[1763497772448,0.51496,3147.5,3147.4,3.444]
[1763497775454,0.75626,3147.5,3147.4,3.444]
[1763497776357,0.89966,3147.5,3147.4,3.2078]
[1763497776541,1.66576971,3147.5,3147.4,3.2078]
[1763497778555,1.52236971,3147.5,3147.4,3.4407]
[1763497778761,1.65816971,3147.5,3147.4,3.2078]
[1763497779249,1.28173467,3147.5,3147.4,3.4407]
[1763497779848,1.52303467,3147.5,3147.4,3.4407]
[1763497780956,1.28173467,3147.5,3147.4,3.95568]
[1763497781148,0.51496,3147.6,3147.5,0.89456]
[1763497782258,4.40386,3148.1,3148.0,0.89448]
[1763497782457,5.17117128,3148.1,3148.0,0.89448]
[1763497782757,1.28217128,3148.1,3148.0,0.89448]
[1763497784959,1.28217128,3148.1,3148.0,0.3796]
[1763497785263,1.28217128,3148.1,3148.0,0.89448]
[1763497785853,0.76731128,3148.1,3148.0,0.89448]
[1763497786055,0.51478,3148.6,3148.5,0.3796]
[1763497786558,1.2823506,3148.6,3148.5,0.8944]
[1763497786761,0.51478,3148.6,3148.5,0.8944]
[1763497787159,0.51478,3148.6,3148.5,0.3796]
[1763497789764,0.51478,3148.6,3148.5,0.8944]
[1763497789960,0.51946834,3149.1,3149.0,0.3796]
[1763497790266,1.28746554,3149.1,3149.0,0.38308117]
[1763497790866,1.28746554,3149.1,3149.0,0.89780117]
[1763497792066,1.52876554,3149.1,3149.0,0.00348117]
[1763497799074,0.76076834,3149.1,3149.0,0.00348117]
[1763497801378,0.00476834,3149.1,3149.0,0.38228117]
[1763497801582,0.00476834,3149.1,3149.0,0.89700117]
[1763497801971,0.75297,3149.9,3149.8,0.2362]
[1763497802378,0.51454,3150.1,3150.0,0.1426]
[1763497802584,4.6419,3150.4,3150.3,0.2362]
[1763497802776,0.5145,3150.4,3150.3,3.444]
[1763497803087,0.51447,3150.5,3150.4,0.2362]
[1763497803283,0.2384,3150.6,3150.5,0.3788]
[1763497803482,0.51921834,3150.7,3150.6,0.2362]
[1763497803787,0.75761834,3150.7,3150.6,0.2362]
[1763497804188,0.75761834,3150.7,3150.3,3.2078]
[1763497804189,0.75287,3150.5,3150.4,0.2362]
[1763497805285,0.51447,3150.5,3150.4,0.2362]
[1763497806497,0.75289,3150.4,3150.3,3.2078]
[1763497806997,0.75289,3150.4,3150.3,3.444]
[1763497807194,0.51449,3150.4,3150.3,3.444]
[1763497808590,0.75289,3150.4,3150.3,3.2078]
[1763497809394,0.75292,3150.2,3150.1,0.00476834]
[1763497809703,0.75305,3149.4,3149.3,3.444]
[1763497810294,0.75305,3149.4,3149.3,3.2078]
[1763497811696,0.7531,3149.1,3149.0,0.00824951]
[1763497812898,0.5147,3149.1,3149.0,0.38704951]
[1763497813098,0.5147,3149.1,3149.0,0.90176951]
[1763497813306,0.7531,3149.1,3149.0,0.00824951]
[1763497815111,0.75318,3148.6,3148.5,3.2078]
[1763497815302,0.75318,3148.6,3148.5,3.444]
[1763497815804,0.75318,3148.6,3148.5,3.2078]
[1763497816008,0.75326,3148.1,3148.0,3.5866]
[1763497816306,0.51486,3148.1,3148.0,3.58924856]
[1763497816506,0.75326,3148.1,3148.0,3.44664856]
[1763497816704,0.51486,3148.1,3148.0,3.58924856]
[1763497817100,0.75326,3148.1,3148.0,3.44664856]
[1763497817301,0.75326,3148.1,3148.0,3.21044856]
[1763497818707,0.75326,3148.1,3148.0,3.44664856]
[1763497820111,0.75326,3148.1,3148.0,3.21044856]
[1763497820311,0.75326,3148.1,3148.0,0.00264856]
[1763497821305,3.2078,3148.2,3147.2,3.2078]
[1763497821514,0.51511,3146.6,3146.1,0.51518]
[1763497821711,0.51511,3146.6,3146.5,0.3771]
[1763497822509,3.2078,3146.9,3146.7,0.2345]
[1763497822807,3.2078,3146.9,3146.8,0.2345]
[1763497823311,0.51503,3147.1,3147.0,0.3797]
[1763497823611,0.51503,3147.1,3147.0,0.1452]
[1763497824208,0.51503,3147.1,3147.0,0.3797]
[1763497825002,0.51503,3147.1,3147.0,0.1452]
[1763497825814,0.51503,3147.1,3147.0,0.3797]
[1763497826016,0.51501,3147.2,3147.1,0.51503]
[1763497826308,0.51501,3147.2,3147.1,0.2345]
[1763497826811,0.515,3147.3,3147.2,0.51501]
[1763497827013,3.2078,3147.7,3147.6,0.2345]
[1763497827014,3.72273,3147.7,3147.6,0.2345]
[1763497827214,3.72273,3147.7,3147.5,0.1452]
[1763497827215,0.51495,3147.6,3147.5,0.1452]
[1763497828012,0.51495,3147.6,3147.5,0.3883]
[1763497830509,0.51495,3147.6,3147.5,0.1452]
[1763497832620,0.51495,3147.6,3147.5,0.3883]
[1763497834713,0.51495,3147.6,3147.5,0.90326]
[1763497834915,0.51495,3147.6,3147.5,0.3883]
[1763497835617,0.51495,3147.6,3147.5,0.1452]
[1763497835818,0.51495,3147.6,3147.5,0.3883]
[1763497837016,0.51495,3147.6,3147.5,0.1452]
[1763497837225,4.40395,3147.6,3147.5,0.1452]
[1763497837917,4.40395,3147.6,3147.5,0.3883]
[1763497839620,4.40395,3147.6,3147.5,0.1452]
[1763497840820,5.17072999,3147.6,3147.5,0.1452]
[1763497842721,4.40395,3147.6,3147.5,0.3883]
[1763497843219,4.40395,3147.6,3147.5,0.1452]
[1763497843411,5.17215182,3147.6,3147.5,0.1452]
[1763497844023,5.17215182,3147.6,3147.5,0.3883]
[1763497844723,3.889,3147.6,3147.5,0.90326]
[1763497844913,7.0968,3148.1,3147.6,0.2431]
[1763497845114,0.51489,3148.0,3147.9,0.75799]
[1763497845318,0.00476834,3148.4,3148.3,0.2431]
[1763497845513,1.28892295,3148.4,3148.3,0.2431]
[1763497845817,0.51486,3148.1,3148.0,0.91044834]
[1763497846218,0.00476834,3148.4,3148.3,0.2431]
[1763497846418,0.51958834,3148.4,3148.3,0.2431]
[1763497846622,1.28908508,3148.4,3148.3,0.2431]
[1763497850525,0.77426508,3148.4,3148.3,0.75793]
[1763497850825,0.00476834,3148.4,3148.3,0.75793]
[1763497851516,0.51958834,3148.4,3148.3,0.2431]
[1763497852831,0.00476834,3148.4,3148.3,0.75793]
[1763497853129,3.21024504,3148.6,3148.5,0.9056]
[1763497853130,0.00244504,3148.6,3148.5,0.9056]
[1763497853434,1e-08,3148.6,3148.5,0.9056]
[1763497853634,3.2078,3149.4,3149.3,0.2431]
[1763497854433,3.94605,3149.4,3149.3,0.2431]
[1763497854732,0.51473,3148.9,3148.8,0.75784]
[1763497855030,0.51473,3148.9,3148.8,0.76020879]
[1763497855230,0.73833,3148.9,3148.8,0.24546879]
[1763497855733,0.51473,3148.9,3148.8,0.24546879]
[1763497855930,0.2236,3149.0,3148.9,0.51473]
[1763497856128,0.2236,3149.0,3148.9,0.75783]
[1763497856630,0.73833,3148.9,3148.8,0.00236879]
[1763497857239,0.2236,3148.9,3148.8,0.24546879]
[1763497857535,0.51473,3148.9,3148.8,0.76018879]
[1763497857737,0.51472,3149.1,3149.0,0.89701]
[1763497858426,0.231,3148.9,3148.8,0.76061879]
[1763497859235,0.74573,3148.9,3148.8,0.00236879]
[1763497859423,0.74573,3148.9,3148.8,0.51711879]
[1763497859626,0.74573,3148.9,3148.8,0.76061879]
[1763497860138,0.74573,3148.9,3148.8,0.00236879]
[1763497860534,3.95353,3148.9,3148.8,0.00236879]
[1763497860837,0.74586,3148.1,3148.0,0.91083834]
[1763497861036,0.51484,3148.3,3148.0,0.39596834]
[1763497861241,0.51484,3148.3,3148.2,0.2435]
[1763497861442,0.7458,3148.5,3148.4,0.2435]
[1763497861839,0.7458,3148.5,3148.4,0.24736233]
[1763497862039,3.9536,3148.5,3148.4,0.00386233]
[1763497862233,4.0938,3148.5,3148.4,0.00386233]
[1763497862435,0.74586,3148.1,3148.0,0.00476834]
[1763497863344,0.74586,3148.1,3148.0,0.00831713]
[1763497865443,3.95366,3148.1,3148.0,0.00831713]
[1763497866840,0.1402,3148.5,3148.2,0.51485]
[1763497867043,0.231,3148.5,3148.4,0.2435]
[1763497867346,0.74586,3148.1,3148.0,0.00831713]
[1763497870155,0.74596,3147.5,3147.4,3.2078]
[1763497870344,0.74603,3147.1,3147.0,3.2078]
[1763497871155,0.74997586,3147.1,3147.0,3.21051271]
[1763497871658,0.74997586,3147.1,3147.0,0.00271271]
[1763497875950,0.74616,3146.3,3146.2,3.2078]
[1763497876154,0.51526,3145.7,3145.6,0.2435]
[1763497876355,0.74631,3145.4,3145.3,3.4513]
[1763497877057,3.2078,3145.9,3145.3,3.4513]
[1763497877058,0.51529,3145.5,3145.4,0.2435]
[1763497877261,0.74629,3145.5,3145.4,0.2435]
[1763497877457,0.74629,3145.5,3145.3,3.21126791]
[1763497877458,0.74631,3145.4,3145.3,3.21126791]
[1763497877756,0.74631,3145.4,3145.3,0.00346791]
[1763497879361,3.2078,3145.5,3145.4,0.75881]
[1763497879958,0.00476834,3145.7,3145.6,0.75877]
[1763497882163,0.00476834,3145.7,3145.6,0.2435]
[1763497882358,0.23576834,3145.7,3145.3,0.00346791]
[1763497882563,0.75461,3145.4,3145.3,0.00346791]
[1763497882958,0.75461,3145.4,3145.3,0.23966791]
[1763497883158,0.5153,3145.5,3145.4,0.2362]
[1763497883358,0.75461,3145.4,3145.3,0.00346791]
[1763497884166,0.75461,3145.4,3145.3,0.51878791]
[1763497884669,0.75461,3145.4,3145.3,0.00346791]
[1763497888874,0.75461,3145.4,3145.3,0.23966791]
[1763497889073,0.75461,3145.4,3145.3,0.00346791]
[1763497895575,0.75877,3144.4,3144.3,3.4533]
[1763497895779,0.75877,3144.4,3144.3,3.2078]
[1763497895971,0.75877,3144.4,3144.3,3.4533]
[1763497896571,0.76190498,3144.4,3144.3,3.45654576]
[1763497896876,0.76190498,3144.4,3144.3,3.97203576]
[1763497897177,0.00313498,3144.4,3144.3,3.97203576]
[1763497898077,0.51860498,3144.4,3144.3,3.97203576]
[1763497898381,0.76190498,3144.4,3144.3,3.21104576]
[1763497898678,0.76190498,3144.4,3144.3,0.00324576]
[1763497898879,0.89544,3144.0,3143.9,3.2078]
[1763497899178,0.75888,3143.7,3143.6,0.51559]
[1763497899378,0.7589,3143.6,3143.5,4.11532]
[1763497899969,0.7589,3143.6,3143.5,4.11838606]
[1763497900170,0.2433,3143.6,3143.5,4.11838606]
[1763497900580,0.51559,3143.7,3143.6,0.7611]
[1763497901384,0.75889,3143.7,3143.6,0.7611]
[1763497901571,0.75889,3143.7,3143.5,0.00306606]
[1763497901775,0.7589,3143.6,3143.5,0.00306606]
[1763497902472,0.7589,3143.6,3143.5,0.51868606]
[1763497902781,0.2433,3143.6,3143.5,0.91008606]
[1763497902976,0.51557,3143.8,3143.7,0.76106]
[1763497903275,3.59246834,3144.0,3143.9,0.51555]
[1763497903480,3.45586834,3144.0,3143.9,0.76105]
[1763497903681,0.24806834,3144.0,3143.9,0.76105]
[1763497903884,0.76361834,3144.0,3143.9,0.76105]
[1763497904184,0.00476834,3144.0,3143.9,0.76105]
[1763497904574,0.00476834,3144.0,3143.9,3.96885]
[1763497906681,0.24806834,3144.0,3143.9,3.96885]
[1763497907774,0.76360834,3144.0,3143.9,3.96885]
[1763497909385,0.52030834,3144.0,3143.9,3.96885]
[1763497909886,0.00476834,3144.0,3143.9,3.96885]
[1763497912583,0.24806834,3144.0,3143.9,3.96885]
[1763497912888,0.90020834,3144.0,3143.9,3.2078]
[1763497913085,0.7589,3143.6,3143.5,0.00306606]
[1763497913791,0.7589,3143.6,3143.5,0.51868606]
[1763497914087,0.7589,3143.6,3143.5,0.00306606]
[1763497914987,0.7589,3143.6,3143.5,0.51868606]
[1763497915890,0.7589,3143.6,3143.5,0.00306606]
[1763497917389,3.9667,3143.6,3143.5,0.00306606]
[1763497919282,3.9667,3143.6,3143.5,0.23356606]
[1763497919581,0.74163,3142.8,3142.7,3.2078]
[1763497919788,0.74163,3142.8,3142.7,3.4383]
[1763497920181,0.2259,3142.8,3142.7,0.74625]
[1763497920381,0.51573,3142.8,3142.7,0.5184222]
[1763497920587,0.74163,3142.8,3142.7,0.0026722]
[1763497920990,0.51591,3141.7,3141.6,0.2305]
[1763497921185,0.74181,3141.7,3141.6,0.2305]
[1763497921492,0.2259,3141.7,3141.6,0.74643]
[1763497921693,0.74181,3141.7,3141.6,0.2305]
[1763497921993,0.74580714,3141.7,3141.6,0.75034335]
[1763497922193,0.74580714,3141.7,3141.6,0.23441335]
[1763497922388,0.22989714,3141.7,3141.6,0.75034335]
[1763497922585,0.00399714,3141.7,3141.6,0.75034335]
[1763497922891,0.51990714,3141.7,3141.6,0.75034335]
[1763497923101,0.74580714,3141.7,3141.6,0.23441335]
[1763497923889,0.74580714,3141.7,3141.6,0.75034335]
[1763497924091,0.22989714,3141.7,3141.6,0.75034335]
[1763497924497,0.74580714,3141.7,3141.6,0.75034335]
[1763497925297,0.51990714,3141.7,3141.6,0.75034335]
[1763497925595,0.00399714,3141.7,3141.6,0.75034335]
[1763497926498,0.51990714,3141.7,3141.6,0.75034335]
[1763497927098,3.95360714,3141.7,3141.6,0.75034335]
[1763497927295,3.95360714,3141.7,3141.6,0.00391335]
[1763497928199,3.95360714,3141.7,3141.6,0.51984335]
[1763497928496,3.95360714,3141.7,3141.6,0.00391335]
[1763497929403,3.95360714,3141.7,3141.6,0.51984335]
[1763497929607,3.95360714,3141.7,3141.6,0.00391335]
[1763497930102,3.95360714,3141.7,3141.6,0.75034335]
[1763497930103,3.21179714,3141.7,3141.6,0.75034335]
[1763497930305,3.72770714,3141.7,3141.6,0.75034335]
[1763497930809,3.21179714,3141.7,3141.6,0.75034335]
[1763497931101,0.00399714,3141.7,3141.6,0.75034335]
[1763497931304,3.2078,3142.6,3142.5,0.2305]
[1763497931501,3.4337,3142.6,3142.5,0.2305]
[1763497931696,0.5158,3142.4,3142.3,0.51581]
[1763497931902,0.5158,3142.4,3142.3,0.74631]
[1763497932105,0.7417,3142.4,3142.3,0.74631]
[1763497932408,0.74484506,3142.4,3142.3,0.2305]
[1763497932601,0.2259,3143.3,3143.2,0.2305]
[1763497932798,0.2259,3142.7,3142.6,0.51577]
[1763497933003,0.74168,3142.5,3142.4,3.4383]
[1763497933202,0.74168,3142.5,3142.4,3.2078]
[1763497933604,3.289,3143.0,3142.2,0.74633]
[1763497933605,0.74171,3142.3,3142.2,0.74633]
[1763497933806,0.74171,3142.3,3142.2,0.2305]
[1763497934205,0.2259,3142.2,3142.1,0.74633]
[1763497934516,0.00476834,3142.6,3142.5,0.88848]
[1763497934811,3.72833834,3142.6,3142.5,0.3727]
[1763497935008,0.2259,3142.4,3142.3,0.74631]
[1763497935408,0.2259,3142.4,3142.3,0.2305]
[1763497935605,0.2259,3142.3,3142.2,0.51583]
[1763497935912,0.2259,3142.3,3142.2,0.74633]
[1763497936107,0.74171,3142.3,3142.2,0.74633]
[1763497936509,0.74171,3142.3,3142.2,0.2305]
[1763497937018,0.74175,3142.1,3142.0,0.2305]
[1763497937510,0.00372737,3142.4,3142.2,0.51583]
[1763497937511,0.51583,3142.3,3142.2,0.51583]
[1763497937710,0.74173,3142.3,3142.2,0.74633]
[1763497938209,0.51583,3142.2,3142.1,0.51583]
[1763497938414,0.51585,3142.1,3142.0,0.3727]
[1763497938918,0.2259,3142.1,3142.0,0.3727]
[1763497939120,0.74172,3142.3,3142.2,0.74631]
[1763497939317,0.2259,3142.3,3142.2,0.74631]
[1763497939913,0.74171,3142.3,3142.2,0.74631]
[1763497940220,0.00372737,3142.4,3142.3,0.74631]
[1763497940615,0.51952737,3142.4,3142.3,0.74631]
[1763497940914,0.74542737,3142.4,3142.3,0.74631]
[1763497941120,0.51952737,3142.4,3142.3,0.74631]
[1763497941418,0.75922737,3142.4,3142.3,0.74631]
[1763497941717,0.24342737,3142.4,3142.3,0.74631]
[1763497941909,0.75922737,3142.4,3142.3,0.2305]
[1763497942115,0.75922737,3142.4,3142.3,0.51581]
[1763497942618,0.75922737,3142.4,3142.0,0.1422]
[1763497942619,0.2397,3142.3,3142.2,0.2373]
[1763497943722,0.2397,3142.3,3142.2,0.75313]
[1763497944017,0.75922737,3142.4,3142.3,0.75311]
[1763497946119,0.24342737,3142.4,3142.3,0.75311]
[1763497946520,0.75922737,3142.4,3142.3,0.75311]
[1763497947719,0.00372737,3142.4,3142.3,0.75311]
[1763497948115,0.00476834,3142.6,3142.5,0.88758]
[1763497948618,3.2078,3143.0,3142.9,0.74392]
[1763497949120,3.21105013,3143.0,3142.9,0.74392]
[1763497950012,0.00325013,3143.0,3142.9,0.74392]
[1763497954724,0.51895013,3143.0,3142.9,0.74392]
[1763497954918,0.00325013,3143.0,3142.9,0.74392]
[1763497955324,0.23625013,3143.0,3142.9,0.74392]
[1763497956024,0.00325013,3143.0,3142.9,0.74392]
[1763497961326,0.75195013,3143.0,3142.9,0.2282]
[1763497961828,0.23625013,3143.0,3142.9,0.74392]
[1763497962028,0.00325013,3143.0,3142.9,0.74392]
[1763497964027,0.23625013,3143.0,3142.9,0.74392]
[1763497964219,0.00325013,3143.0,3142.9,0.74392]
[1763497964419,0.75195013,3143.0,3142.9,0.74392]
[1763497964820,0.23625013,3143.0,3142.9,0.74392]
[1763497965023,0.75195013,3143.0,3142.9,0.74392]
[1763497965323,4.09775013,3143.0,3142.5,0.1436]
[1763497965528,0.233,3142.3,3142.2,3.95183]
[1763497965825,0.74891,3141.7,3141.3,0.51597]
[1763497966018,0.74891,3141.7,3141.0,0.1422]
[1763497966528,0.74891,3141.7,3141.2,0.51599]
[1763497966728,0.74891,3141.7,3141.0,0.1422]
[1763497967027,0.74891,3141.7,3141.3,0.00476834]
[1763497967930,0.74891,3141.7,3141.4,0.51596]
[1763497968322,0.74891,3141.7,3141.3,0.00476834]
[1763497969634,0.233,3141.2,3141.1,0.7442]
[1763497969829,0.74908,3140.7,3140.6,0.2282]
[1763497970033,3.4408,3140.7,3140.6,0.74429]
[1763497970426,3.95688,3140.7,3140.6,0.2282]
[1763497970624,3.95967845,3140.7,3140.6,0.74681643]
[1763497971231,3.44359845,3140.7,3140.6,0.74681643]
[1763497971429,3.95967845,3140.7,3140.6,0.74681643]
[1763497971619,3.44359845,3140.7,3140.6,0.74681643]
[1763497971824,3.21059845,3140.7,3140.6,0.74681643]
[1763497972126,0.00279845,3140.7,3140.6,0.74681643]
[1763497973035,3.2078,3141.5,3141.4,0.74416]
[1763497973329,3.72375,3141.5,3141.4,0.74416]
[1763497973525,3.95675,3141.5,3141.4,0.74416]
[1763497973927,3.95937051,3141.5,3141.4,0.74416]
[1763497974228,3.44342051,3141.5,3141.4,0.74416]
[1763497974529,3.21042051,3141.5,3141.4,0.74416]
[1763497975031,3.44342051,3141.5,3141.4,0.74416]
[1763497976330,3.95937051,3141.5,3141.4,0.74416]
[1763497977033,3.34842051,3141.5,3141.1,0.2282]
[1763497977232,0.74899,3141.3,3140.6,3.09531643]
[1763497977433,0.74899,3141.3,3141.2,0.51599]
[1763497978437,0.74899,3141.3,3141.2,0.51863603]
[1763497978936,0.51599,3141.3,3141.2,0.76023603]
[1763497979329,0.74079,3141.3,3141.2,0.51863603]
[1763497979529,0.74079,3141.3,3141.2,0.76023603]
[1763497980034,0.74079,3141.3,3141.2,0.51863603]
[1763497981131,0.74079,3141.3,3141.2,0.00264603]
[1763497981930,0.74088,3140.7,3140.6,0.51609]
[1763497982137,3.94868,3140.7,3140.6,0.51609]
[1763497982336,3.4326,3140.7,3140.6,0.51609]